fUST/lending_fUST_20240102
["ID","MTS","AMOUNT","RATE_DAILY","PERIOD"]
[309802489,1704154235346,-686.46024055,0.00033,3]
[309802490,1704154235356,-391.0,0.00033113,15]
[309802491,1704154235366,-500.0,0.00033999,2]
[309802492,1704154235375,-484.39728189,0.00033999,2]
[309802493,1704154235385,-346.65024276,0.00033999,2]
[309802494,1704154235395,-283.93610968,0.00033999,2]
[309802495,1704154235404,-258.77957353,0.00033999,2]
[309802496,1704154235413,-4004.27717012,0.00034,2]
[309802497,1704154235423,-1000.0,0.00034437,7]
[309802498,1704154235435,-155.40166656,0.00034438,2]
[309802499,1704154235445,-501.11702393,0.00035,7]
[309802500,1704154235455,-9304.29587217,0.00035,3]
[309802501,1704154235464,-155.0,0.00035,2]
[309802502,1704154235474,-429.0,0.00035452,2]
[309802503,1704154235484,-435.053617,0.00035616,120]
[309802504,1704154235494,-152.73,0.00035989,3]
[309802505,1704154235503,-763.69,0.00035989,3]
[309802506,1704154235512,-216.6729045,0.00035998,4]
[309802508,1704154235521,-226.60657103,0.00035998,4]
[309802510,1704154235531,-272.69544025,0.00035998,4]
[309802512,1704154235541,-1035.32815078,0.00035998,4]
[309802514,1704154235550,-318.86983635,0.00035998,4]
[309802516,1704154235560,-746.4307738,0.00035998,4]
[309802518,1704154235573,-124.25712286,0.00035998,4]
[309802519,1704154235583,-1573.7077599,0.00035998,4]
[309802520,1704154235592,-1472.87546295,0.00035999,4]
[309802554,1704154237228,413.28652308,0.00020474,2]
[309802592,1704154238251,-23053.90850853,0.00035999,4]
[309802594,1704154238261,-449.47,0.00035999,2]
[309802596,1704154238271,-449.47,0.00035999,2]
[309802597,1704154238280,-449.47,0.00035999,2]
[309802598,1704154238289,-449.47,0.00035999,2]
[309802599,1704154238298,-449.47,0.00035999,2]
[309802600,1704154238308,-449.47,0.00035999,2]
[309802601,1704154238317,-449.47,0.00035999,2]
[309802603,1704154238326,-495.33184814,0.00035999,4]
[309802605,1704154238335,-289.81391312,0.00035999,4]
[309802607,1704154238345,-410.41825265,0.00035999,4]
[309802609,1704154238354,-500.0,0.00035999,4]
[309802611,1704154238363,-265.75465791,0.00035999,4]
[309802613,1704154238373,-455.26774412,0.00035999,7]
[309802615,1704154238382,-384.97578846,0.00036,2]
[309802617,1704154238392,-4017.10407005,0.00036,2]
[309802619,1704154238404,-1816.2802,0.00036,2]
[309802621,1704154238415,-39029.99243066,0.00036,2]
[309802623,1704154238428,-76877.83963921,0.00036,2]
[309802625,1704154238438,-155.0,0.0003637,2]
[309802627,1704154238447,-200.0,0.00036424,15]
[309802629,1704154238456,-348.0,0.00036424,15]
[309802631,1704154238466,-155.40166656,0.00036617,2]
[309802633,1704154238475,-28484.00066456,0.00036717,4]
[309802635,1704154238484,-1016.51594709,0.00036719,2]
[309802637,1704154238494,-232.695896,0.00037479,2]
[309802639,1704154238503,-270.13044255,0.00038,4]
[309802641,1704154238512,-434.96947842,0.00038,2]
[309802643,1704154238521,-505.7127613,0.00038,30]
[309802645,1704154238530,-19159.66133628,0.00038262,2]
[309802647,1704154238540,-35551.71402208,0.00038262,2]
[309802649,1704154238549,-500.0,0.00038356,2]
[309802651,1704154238557,-479.0,0.0003874,2]
[309802653,1704154238566,-3110.37038557,0.000388,2]
[309802655,1704154238575,-640.6181668,0.00039,10]
[309802657,1704154238584,-1277.62182177,0.00039132,2]
[309802659,1704154238593,-289.0,0.00040067,30]
[309802661,1704154238602,-362.02782,0.00040314,4]
[309802663,1704154238611,-17369.61951597,0.00040315,4]
[309802665,1704154238621,-232.0,0.00040485,2]
[309802666,1704154238630,-175.89353685,0.00040999,7]
[309802677,1704154238722,-574.31599343,0.00040999,7]
[309802679,1704154238731,-297.19910888,0.00040999,7]
[309802681,1704154238741,-12852.0,0.00041,2]
[309802683,1704154238750,-61620.0,0.00041,2]
[309802685,1704154238760,-15633.90894633,0.00041,2]
[309802687,1704154238769,-1330.133437,0.00041,2]
[309802689,1704154238778,-1330.133437,0.00041,2]
[309802691,1704154238788,-197.785914,0.00041,2]
[309802693,1704154238798,-197.785914,0.00041,2]
[309802694,1704154238806,-263.89328743,0.00041093,4]
[309802696,1704154238816,-500.0,0.00041095,7]
[309802698,1704154238825,-500.0,0.00041095,7]
[309802700,1704154238834,-500.0,0.00041095,7]
[309802702,1704154238844,-500.0,0.00041095,7]
[309802704,1704154238853,-500.0,0.00041095,7]
[309802706,1704154238863,-500.0,0.00041095,7]
[309802708,1704154238872,-500.0,0.00041095,7]
[309802710,1704154238881,-500.0,0.00041095,7]
[309802712,1704154238890,-501.11370065,0.00041095,7]
[309802714,1704154238901,-3206.7,0.00041095,7]
[309802716,1704154238910,-282.62911934,0.00041095,7]
[309802718,1704154238920,-500.0,0.00041095,7]
[309802720,1704154238929,-500.0,0.00041095,7]
[309802722,1704154238938,-501.73923898,0.00041095,7]
[309802724,1704154238947,-528.65111872,0.00041095,7]
[309802726,1704154238956,-537.99219109,0.00041095,7]
[309802728,1704154238965,-500.0,0.00041095,7]
[309802730,1704154238974,-455.92414387,0.00041095,7]
[309802731,1704154238983,-500.0,0.00041095,7]
[309802733,1704154238993,-500.0,0.00041095,7]
[309802736,1704154239003,-500.0,0.00041095,7]
[309802737,1704154239012,-500.0,0.00041095,7]
[309802739,1704154239021,-502.59517261,0.00041095,7]
[309802741,1704154239031,-500.0,0.00041095,7]
[309802743,1704154239040,-260.56802668,0.00041095,7]
[309802745,1704154239048,-188.24654826,0.00041095,7]
[309802747,1704154239057,-500.0,0.00041095,7]
[309802749,1704154239066,-500.0,0.00041095,7]
[309802751,1704154239075,-500.0,0.00041095,7]
[309802753,1704154239084,-502.99156135,0.00041095,7]
[309802754,1704154239093,-500.0,0.00041095,7]
[309802756,1704154239102,-504.28900353,0.00041095,7]
[309802758,1704154239112,-500.0,0.00041095,7]
[309802760,1704154239121,-516.96332746,0.00041095,7]
[309802762,1704154239130,-510.77734568,0.00041095,7]
[309802764,1704154239139,-259.79550932,0.00041095,7]
[309802766,1704154239150,-500.0,0.00041095,7]
[309802768,1704154239159,-500.0,0.00041095,7]
[309802770,1704154239168,-500.0,0.00041095,7]
[309802772,1704154239178,-500.0,0.00041095,7]
[309802774,1704154239187,-500.0,0.00041095,7]
[309802775,1704154239197,-500.0,0.00041095,7]
[309802776,1704154239206,-500.0,0.00041095,7]
[309802777,1704154239215,-500.0,0.00041095,7]
[309802778,1704154239225,-500.0,0.00041095,7]
[309802779,1704154239234,-500.0,0.00041095,7]
[309802780,1704154239243,-500.0,0.00041095,7]
[309802781,1704154239253,-500.0,0.00041095,7]
[309802782,1704154239262,-500.0,0.00041095,7]
[309802783,1704154239272,-500.0,0.00041095,7]
[309802784,1704154239282,-500.0,0.00041095,7]
[309802785,1704154239292,-500.0,0.00041095,7]
[309802786,1704154239302,-500.0,0.00041095,7]
[309802787,1704154239312,-500.0,0.00041095,7]
[309802788,1704154239321,-218.18913834,0.00041095,7]
[309802789,1704154239331,-196.54941185,0.00041095,7]
[309802790,1704154239340,-500.0,0.00041095,7]
[309802791,1704154239349,-504.12547844,0.00041095,7]
[309802792,1704154239358,-500.0,0.00041095,7]
[309802793,1704154239367,-500.0,0.00041095,7]
[309802794,1704154239377,-500.0,0.00041095,7]
[309802795,1704154239386,-500.0,0.00041095,7]
[309802796,1704154239397,-500.0,0.00041095,7]
[309802797,1704154239406,-500.0,0.00041095,7]
[309802798,1704154239416,-298.9788414,0.00041095,7]
[309802799,1704154239425,-170.07739419,0.00041095,7]
[309802801,1704154239435,-3375.66,0.00041095,7]
[309802802,1704154239445,-396.40454286,0.00041095,7]
[309802803,1704154239454,-500.0,0.00041095,7]
[309802804,1704154239464,-500.0,0.00041095,7]
[309802805,1704154239473,-500.0,0.00041095,7]
[309802806,1704154239483,-500.0,0.00041095,7]
[309802807,1704154239492,-500.0,0.00041095,7]
[309802808,1704154239501,-500.0,0.00041095,7]
[309802809,1704154239511,-500.0,0.00041095,7]
[309802810,1704154239520,-500.0,0.00041095,7]
[309802811,1704154239530,-500.0,0.00041095,7]
[309802812,1704154239538,-500.0,0.00041095,7]
[309802813,1704154239547,-500.0,0.00041095,7]
[309802814,1704154239557,-682.21,0.00041095,7]
[309802815,1704154239566,-500.0,0.00041095,7]
[309802816,1704154239576,-500.0,0.00041095,7]
[309802817,1704154239585,-502.6151992,0.00041095,7]
[309802818,1704154239594,-500.0,0.00041095,7]
[309802819,1704154239603,-500.0,0.00041095,7]
[309802820,1704154239613,-500.0,0.00041095,7]
[309802822,1704154239622,-500.0,0.00041095,7]
[309802823,1704154239631,-500.0,0.00041095,7]
[309802824,1704154239640,-500.0,0.00041095,7]
[309802825,1704154239650,-500.0,0.00041095,7]
[309802826,1704154239660,-319.64475185,0.00041095,7]
[309802827,1704154239673,-564.0352464,0.00041095,7]
[309802828,1704154239682,-500.0,0.00041095,7]
[309802829,1704154239691,-500.0,0.00041095,7]
[309802830,1704154239700,-536.64584687,0.00041095,7]
[309802831,1704154239710,-500.0,0.00041095,7]
[309802832,1704154239720,-500.0,0.00041095,7]
[309802833,1704154239729,-521.37574442,0.00041095,7]
[309802834,1704154239738,-500.0,0.00041095,7]
[309802835,1704154239749,-947.09,0.00041095,7]
[309802836,1704154239758,-500.0,0.00041095,7]
[309802837,1704154239767,-500.0,0.00041095,7]
[309802838,1704154239777,-500.0,0.00041095,7]
[309802839,1704154239786,-500.0,0.00041095,7]
[309802840,1704154239795,-500.0,0.00041095,7]
[309802841,1704154239804,-500.0,0.00041095,7]
[309802842,1704154239813,-509.51969355,0.00041095,7]
[309802843,1704154239821,-27107.2,0.00041095,3]
[309802844,1704154239831,-500.0,0.00041095,7]
[309802845,1704154239840,-517.25942648,0.00041095,7]
[309802846,1704154239849,-500.0,0.00041095,7]
[309802847,1704154239859,-500.0,0.00041095,7]
[309802848,1704154239867,-500.0,0.00041095,7]
[309802849,1704154239876,-500.0,0.00041095,7]
[309802850,1704154239885,-500.0,0.00041095,7]
[309802851,1704154239896,-500.0,0.00041095,7]
[309802852,1704154239906,-500.0,0.00041095,7]
[309802853,1704154239915,-500.0,0.00041095,7]
[309802854,1704154239924,-500.0,0.00041095,7]
[309802855,1704154239934,-500.0,0.00041095,7]
[309802856,1704154239944,-500.0,0.00041095,7]
[309802857,1704154239954,-500.0,0.00041095,7]
[309802858,1704154239964,-500.0,0.00041095,7]
[309802859,1704154239973,-500.0,0.00041095,7]
[309802860,1704154239982,-6409.6,0.00041095,7]
[309802861,1704154239992,-622.14,0.00041095,7]
[309802862,1704154240001,-500.0,0.00041095,7]
[309802863,1704154240011,-500.0,0.00041095,7]
[309802864,1704154240020,-500.0,0.00041095,7]
[309802865,1704154240030,-500.0,0.00041095,7]
[309802866,1704154240039,-666.33,0.00041095,7]
[309802867,1704154240048,-289.68185809,0.00041095,7]
[309802868,1704154240057,-500.0,0.00041095,7]
[309802869,1704154240066,-2874.51,0.00041095,7]
[309802870,1704154240076,-500.0,0.00041095,7]
[309802871,1704154240085,-500.0,0.00041095,7]
[309802872,1704154240095,-500.0,0.00041095,7]
[309802873,1704154240104,-500.0,0.00041095,7]
[309802874,1704154240113,-2341.24,0.00041095,7]
[309802875,1704154240122,-322.99096048,0.00041095,7]
[309802876,1704154240133,-508.20751418,0.00041095,7]
[309802877,1704154240143,-502.72662862,0.00041095,7]
[309802878,1704154240153,-500.0,0.00041095,7]
[309802879,1704154240162,-500.0,0.00041095,7]
[309802880,1704154240172,-513.17867103,0.00041095,7]
[309802881,1704154240181,-956.11,0.00041095,7]
[309802882,1704154240190,-1109.37,0.00041095,7]
[309802883,1704154240199,-500.0,0.00041095,7]
[309802884,1704154240209,-500.0,0.00041095,7]
[309802885,1704154240218,-2601.52,0.00041095,7]
[309802886,1704154240228,-500.0,0.00041095,7]
[309802888,1704154240237,-500.0,0.00041095,7]
[309802889,1704154240247,-285.81010276,0.00041095,7]
[309802891,1704154240256,-500.0,0.00041095,7]
[309802893,1704154240265,-500.0,0.00041095,7]
[309802895,1704154240275,-602.7,0.00041095,7]
[309802897,1704154240284,-500.0,0.00041095,7]
[309802900,1704154240294,-500.0,0.00041095,7]
[309802902,1704154240303,-510.51561126,0.00041095,7]
[309802904,1704154240314,-500.0,0.00041095,2]
[309802905,1704154240323,-500.0,0.00041095,7]
[309802906,1704154240333,-500.0,0.00041095,7]
[309802907,1704154240343,-1713.79,0.00041095,7]
[309802908,1704154240353,-500.0,0.00041095,7]
[309802909,1704154240362,-535.18934265,0.00041095,7]
[309802910,1704154240371,-500.0,0.00041095,7]
[309802911,1704154240381,-500.0,0.00041095,7]
[309802913,1704154240391,-500.0,0.00041095,2]
[309802915,1704154240400,-500.0,0.00041095,7]
[309802917,1704154240409,-532.48952987,0.00041095,7]
[309802919,1704154240419,-1330.133437,0.00041095,2]
[309802921,1704154240430,-1330.133437,0.00041095,2]
[309802923,1704154240439,-1330.133437,0.00041095,2]
[309802924,1704154240448,-1330.133437,0.00041095,2]
[309802925,1704154240458,-197.785914,0.00041095,2]
[309802926,1704154240467,-197.785914,0.00041095,2]
[309802928,1704154240477,-197.785914,0.00041095,2]
[309802930,1704154240486,-197.785914,0.00041095,2]
[309802932,1704154240495,-500.0,0.00041232,7]
[309802934,1704154240505,-602.70554182,0.00041232,7]
[309802936,1704154240515,-500.0,0.00041232,7]
[309802938,1704154240524,-178.76624602,0.00041232,7]
[309802940,1704154240533,-500.0,0.00041232,7]
[309802942,1704154240542,-500.0,0.00041232,7]
[309802943,1704154240551,-500.0,0.00041232,7]
[309802944,1704154240560,-3206.7,0.00041232,7]
[309802945,1704154240569,-500.0,0.00041232,7]
[309802946,1704154240579,-500.0,0.00041232,7]
[309802947,1704154240589,-500.0,0.00041232,7]
[309802948,1704154240599,-500.0,0.00041232,7]
[309802949,1704154240608,-501.80116209,0.00041232,7]
[309802950,1704154240618,-500.0,0.00041232,7]
[309802951,1704154240627,-500.0,0.00041232,7]
[309802952,1704154240637,-513.81411814,0.00041232,7]
[309802953,1704154240648,-500.0,0.00041232,7]
[309802954,1704154240657,-467.08803974,0.00041232,7]
[309802955,1704154240667,-260.13142977,0.00041232,7]
[309802956,1704154240677,-500.0,0.00041232,7]
[309802957,1704154240687,-565.38316853,0.00041232,7]
[309802958,1704154240697,-500.0,0.00041232,7]
[309802959,1704154240706,-500.0,0.00041232,7]
[309802960,1704154240785,-500.0,0.00041232,7]
[309802961,1704154240794,-500.0,0.00041232,7]
[309802962,1704154240804,-500.0,0.00041232,7]
[309802963,1704154240813,-500.0,0.00041232,7]
[309802964,1704154240822,-507.47503805,0.00041232,7]
[309802965,1704154240832,-538.20483802,0.00041232,7]
[309802966,1704154240841,-500.0,0.00041232,7]
[309802967,1704154240851,-500.0,0.00041232,7]
[309802968,1704154240860,-500.0,0.00041232,7]
[309802969,1704154240869,-500.0,0.00041232,7]
[309802970,1704154240878,-500.0,0.00041232,7]
[309802971,1704154240887,-594.48547314,0.00041232,7]
[309802972,1704154240898,-551.09885866,0.00041232,7]
[309802973,1704154240907,-500.0,0.00041232,7]
[309802974,1704154240916,-500.0,0.00041232,7]
[309802975,1704154240925,-500.0,0.00041232,7]
[309802976,1704154240934,-500.0,0.00041232,7]
[309802977,1704154240943,-500.0,0.00041232,7]
[309802978,1704154240953,-500.0,0.00041232,7]
[309802979,1704154240964,-500.0,0.00041232,7]
[309802980,1704154240974,-500.0,0.00041232,7]
[309802981,1704154240983,-500.0,0.00041232,7]
[309802982,1704154240993,-3375.66,0.00041232,7]
[309802983,1704154241002,-500.0,0.00041232,7]
[309802984,1704154241011,-310.68766809,0.00041232,7]
[309802985,1704154241022,-500.0,0.00041232,7]
[309802986,1704154241031,-500.0,0.00041232,7]
[309802987,1704154241041,-500.0,0.00041232,7]
[309802988,1704154241051,-500.0,0.00041232,7]
[309802989,1704154241061,-500.0,0.00041232,7]
[309802990,1704154241069,-500.0,0.00041232,7]
[309802991,1704154241079,-500.0,0.00041232,7]
[309802992,1704154241088,-500.0,0.00041232,7]
[309802993,1704154241097,-500.0,0.00041232,7]
[309802994,1704154241106,-682.21,0.00041232,7]
[309802995,1704154241115,-500.0,0.00041232,7]
[309802996,1704154241125,-500.0,0.00041232,7]
[309802997,1704154241135,-500.0,0.00041232,7]
[309802998,1704154241145,-500.0,0.00041232,7]
[309802999,1704154241153,-500.0,0.00041232,7]
[309803000,1704154241163,-500.0,0.00041232,7]
[309803001,1704154241173,-500.0,0.00041232,7]
[309803002,1704154241184,-500.0,0.00041232,7]
[309803004,1704154241193,-502.8689819,0.00041232,7]
[309803005,1704154241203,-500.0,0.00041232,7]
[309803006,1704154241212,-500.0,0.00041232,7]
[309803007,1704154241222,-500.0,0.00041232,7]
[309803008,1704154241231,-500.0,0.00041232,7]
[309803009,1704154241242,-500.0,0.00041232,7]
[309803011,1704154241251,-947.09,0.00041232,7]
[309803012,1704154241261,-500.0,0.00041232,7]
[309803014,1704154241270,-500.0,0.00041232,7]
[309803015,1704154241280,-519.95770334,0.00041232,7]
[309803017,1704154241290,-500.0,0.00041232,7]
[309803018,1704154241299,-500.0,0.00041232,7]
[309803019,1704154241309,-27107.2,0.00041232,3]
[309803021,1704154241319,-500.0,0.00041232,7]
[309803023,1704154241329,-500.0,0.00041232,7]
[309803025,1704154241338,-506.26841923,0.00041232,7]
[309803027,1704154241347,-500.0,0.00041232,7]
[309803028,1704154241357,-500.0,0.00041232,7]
[309803029,1704154241366,-500.0,0.00041232,7]
[309803031,1704154241375,-500.0,0.00041232,7]
[309803033,1704154241385,-500.0,0.00041232,7]
[309803035,1704154241395,-500.0,0.00041232,7]
[309803037,1704154241405,-503.93173041,0.00041232,7]
[309803039,1704154241414,-500.0,0.00041232,7]
[309803041,1704154241424,-500.0,0.00041232,7]
[309803043,1704154241433,-500.0,0.00041232,7]
[309803045,1704154241442,-500.0,0.00041232,7]
[309803047,1704154241451,-6409.6,0.00041232,7]
[309803049,1704154241460,-622.14,0.00041232,7]
[309803051,1704154241470,-500.0,0.00041232,7]
[309803053,1704154241479,-509.88199587,0.00041232,7]
[309803055,1704154241489,-500.0,0.00041232,7]
[309803057,1704154241498,-500.0,0.00041232,7]
[309803059,1704154241508,-666.33,0.00041232,7]
[309803061,1704154241517,-500.0,0.00041232,7]
[309803063,1704154241526,-2874.51,0.00041232,7]
[309803065,1704154241537,-500.0,0.00041232,7]
[309803067,1704154241546,-537.26468471,0.00041232,7]
[309803069,1704154241556,-500.0,0.00041232,7]
[309803071,1704154241566,-2341.24,0.00041232,7]
[309803073,1704154241576,-500.0,0.00041232,7]
[309803075,1704154241586,-956.11,0.00041232,7]
[309803077,1704154241596,-507.8597073,0.00041232,7]
[309803079,1704154241606,-1109.37,0.00041232,7]
[309803081,1704154241616,-500.0,0.00041232,7]
[309803083,1704154241625,-2601.52,0.00041232,7]
[309803085,1704154241634,-500.0,0.00041232,7]
[309803087,1704154241645,-359.00396232,0.00041232,7]
[309803089,1704154241654,-500.0,0.00041232,7]
[309803091,1704154241663,-500.0,0.00041232,7]
[309803093,1704154241675,-602.7,0.00041232,7]
[309803095,1704154241685,-500.0,0.00041232,7]
[309803097,1704154241694,-500.0,0.00041232,7]
[309803099,1704154241704,-500.0,0.00041232,2]
[309803101,1704154241715,-500.0,0.00041232,7]
[309803103,1704154241725,-500.0,0.00041232,7]
[309803105,1704154241734,-1713.79,0.00041232,7]
[309803107,1704154241743,-500.0,0.00041232,7]
[309803109,1704154241753,-500.0,0.00041232,7]
[309803111,1704154241763,-500.0,0.00041232,2]
[309803113,1704154241776,-500.0,0.00041232,7]
[309803115,1704154241785,-315.0,0.00041232,2]
[309803118,1704154241794,-315.0,0.00041232,2]
[309803120,1704154241804,-1330.133437,0.00041232,7]
[309803122,1704154241813,-1330.133437,0.00041232,7]
[309803123,1704154241822,-1330.133437,0.00041232,7]
[309803125,1704154241831,-1330.133437,0.00041232,7]
[309803127,1704154241841,-1330.133437,0.00041232,7]
[309803129,1704154241850,-1330.133437,0.00041232,7]
[309803132,1704154241859,-197.785914,0.00041232,7]
[309803133,1704154241868,-197.785914,0.00041232,7]
[309803136,1704154241878,-197.785914,0.00041232,7]
[309803138,1704154241887,-197.785914,0.00041232,7]
[309803140,1704154241898,-5000.0,0.00041247,15]
[309803141,1704154241909,-5000.0,0.00041247,15]
[309803144,1704154241919,-5000.0,0.00041247,15]
[309803146,1704154241929,-200.0,0.000413,4]
[309803147,1704154241939,-1270.2583135,0.00041357,2]
[309803149,1704154241949,-431.44822,0.00041367,4]
[309803151,1704154241958,-612.33111359,0.00041367,4]
[309803154,1704154241968,-9890.87127788,0.00041367,2]
[309803156,1704154241978,-3746.22066298,0.00041367,2]
[309803158,1704154241987,-293.33491011,0.00041367,2]
[309803159,1704154241996,-160.74311348,0.00041367,2]
[309803162,1704154242006,-3890.78792731,0.00041367,4]
[309803164,1704154242015,-2668.88396499,0.00041367,2]
[309803166,1704154242025,-3480.53065541,0.00041367,2]
[309803168,1704154242034,-198.99,0.00041367,2]
[309803170,1704154242043,-20814.78657621,0.00041367,2]
[309803172,1704154242052,-315.0,0.00041367,2]
[309803174,1704154242061,-315.0,0.00041367,2]
[309803175,1704154242070,-1330.133437,0.00041367,7]
[309803178,1704154242079,-1330.133437,0.00041367,7]
[309803179,1704154242089,-197.785914,0.00041367,7]
[309803181,1704154242099,-197.785914,0.00041367,7]
[309803184,1704154242108,-5093.04526809,0.00041368,4]
[309803185,1704154242117,-449.49,0.00041368,7]
[309803188,1704154242127,-449.49,0.00041368,7]
[309803189,1704154242136,-449.49,0.00041368,7]
[309803191,1704154242145,-1285.17057064,0.00041369,2]
[309803193,1704154242155,-233.71954556,0.00041369,2]
[309803195,1704154242164,-1000.0,0.00041369,2]
[309803197,1704154242173,-500.0,0.00041369,7]
[309803200,1704154242182,-500.0,0.00041369,7]
[309803201,1704154242191,-500.0,0.00041369,7]
[309803203,1704154242200,-3206.7,0.00041369,7]
[309803205,1704154242209,-530.23050078,0.00041369,7]
[309803207,1704154242218,-500.0,0.00041369,7]
[309803209,1704154242227,-500.0,0.00041369,7]
[309803211,1704154242237,-564.37579394,0.00041369,7]
[309803213,1704154242246,-500.0,0.00041369,7]
[309803215,1704154242255,-500.0,0.00041369,7]
[309803217,1704154242264,-500.0,0.00041369,7]
[309803219,1704154242273,-500.0,0.00041369,7]
[309803221,1704154242282,-175.6321865,0.00041369,7]
[309803223,1704154242291,-500.0,0.00041369,7]
[309803225,1704154242301,-500.0,0.00041369,7]
[309803227,1704154242311,-500.0,0.00041369,7]
[309803229,1704154242320,-500.0,0.00041369,7]
[309803231,1704154242330,-622.82588525,0.00041369,7]
[309803233,1704154242339,-500.0,0.00041369,7]
[309803235,1704154242348,-506.97618567,0.00041369,7]
[309803237,1704154242357,-500.0,0.00041369,7]
[309803239,1704154242367,-450.6720442,0.00041369,7]
[309803241,1704154242376,-500.0,0.00041369,7]
[309803243,1704154242386,-500.0,0.00041369,7]
[309803245,1704154242395,-500.0,0.00041369,7]
[309803247,1704154242404,-500.0,0.00041369,7]
[309803249,1704154242413,-500.0,0.00041369,7]
[309803251,1704154242423,-500.0,0.00041369,7]
[309803253,1704154242433,-500.0,0.00041369,7]
[309803255,1704154242442,-500.0,0.00041369,7]
[309803257,1704154242451,-500.0,0.00041369,7]
[309803259,1704154242460,-500.0,0.00041369,7]
[309803261,1704154242470,-3375.66,0.00041369,7]
[309803263,1704154242479,-500.0,0.00041369,7]
[309803265,1704154242489,-500.0,0.00041369,7]
[309803267,1704154242499,-500.0,0.00041369,7]
[309803269,1704154242508,-506.71291771,0.00041369,7]
[309803271,1704154242517,-315.5104203,0.00041369,7]
[309803273,1704154242527,-509.95783752,0.00041369,7]
[309803275,1704154242537,-153.24438875,0.00041369,7]
[309803277,1704154242546,-275.87026185,0.00041369,7]
[309803280,1704154242555,-500.0,0.00041369,7]
[309803282,1704154242565,-590.67599091,0.00041369,7]
[309803285,1704154242574,-682.21,0.00041369,7]
[309803288,1704154242583,-500.0,0.00041369,7]
[309803291,1704154242592,-448.54147917,0.00041369,7]
[309803294,1704154242602,-500.0,0.00041369,7]
[309803297,1704154242611,-500.0,0.00041369,7]
[309803300,1704154242620,-500.0,0.00041369,7]
[309803313,1704154242694,-500.0,0.00041369,7]
[309803315,1704154242703,-500.0,0.00041369,7]
[309803317,1704154242712,-500.0,0.00041369,7]
[309803319,1704154242722,-500.0,0.00041369,7]
[309803320,1704154242731,-381.27465337,0.00041369,7]
[309803329,1704154242768,808.47812784,0.00020475,2]
[309803336,1704154242795,-118.72534663,0.00041369,7]
[309803338,1704154242804,-149.17356793,0.00041369,7]
[309803382,1704154243279,-195.02467921,0.00041095,7]
[309803384,1704154243288,-350.82643207,0.00041369,7]
[309803386,1704154243298,-500.0,0.00041369,7]
[309803388,1704154243307,-503.6316236,0.00041369,7]
[309803390,1704154243316,-947.09,0.00041369,7]
[309803392,1704154243325,-500.0,0.00041369,7]
[309803393,1704154243334,-500.0,0.00041369,7]
[309803396,1704154243347,-513.23337379,0.00041369,7]
[309803398,1704154243356,-500.0,0.00041369,7]
[309803400,1704154243365,-27107.2,0.00041369,3]
[309803402,1704154243375,-500.0,0.00041369,7]
[309803404,1704154243384,-500.0,0.00041369,7]
[309803406,1704154243394,-500.0,0.00041369,7]
[309803408,1704154243403,-500.0,0.00041369,7]
[309803410,1704154243412,-500.0,0.00041369,7]
[309803412,1704154243421,-488.48607589,0.00041369,7]
[309803414,1704154243431,-500.0,0.00041369,7]
[309803416,1704154243440,-223.45635284,0.00041369,7]
[309803418,1704154243450,-500.0,0.00041369,7]